[Event "Chessity Nationale Pupillendag 2019 - Groep F"]
[Site "Meppel, Netherlands"]
[Date "2019.06.29"]
[Round "3.5"]
[White "Kurt, Sascha"]
[Black "Heukelom, Aurelia"]
[Result "1-0"]
[TimeControl "15 min + 10 sec"]
[WhiteElo "789"]
[BlackElo "643"]

1. e4 {[%clk 00:15:18]} {[%emt 00:00:02]} e5 {[%clk 00:15:19]} {[%emt
00:00:02]} 2. d4 {[%clk 00:15:22]} {[%emt 00:00:05]} Nc6 {[%clk 00:15:27]}
{[%emt 00:00:03]} 3. d5 {[%clk 00:15:27]} {[%emt 00:00:05]} Nd4 {[%clk
00:15:34]} {[%emt 00:00:03]} 4. c3 {[%clk 00:15:31]} {[%emt 00:00:06]} Nf3+
{[%clk 00:14:27]} {[%emt 00:01:15]} 5. Nxf3 {[%clk 00:15:32]} {[%emt 00:00:09]}
d6 {[%clk 00:14:32]} {[%emt 00:00:05]} 6. Bc4 {[%clk 00:15:22]} {[%emt
00:00:20]} Bg4 {[%clk 00:14:24]} {[%emt 00:00:19]} 7. Bb5+ {[%clk 00:14:53]}
{[%emt 00:00:39]} Bd7 {[%clk 00:14:03]} {[%emt 00:00:30]} 8. Bxd7+ {[%clk
00:14:55]} {[%emt 00:00:08]} Qxd7 {[%clk 00:14:12]} {[%emt 00:00:02]} 9. Qb3
{[%clk 00:14:53]} {[%emt 00:00:12]} b6 {[%clk 00:14:09]} {[%emt 00:00:13]} 10.
O-O {[%clk 00:14:45]} {[%emt 00:00:18]} Nf6 {[%clk 00:14:04]} {[%emt 00:00:14]}
11. Re1 {[%clk 00:14:29]} {[%emt 00:00:27]} Be7 {[%clk 00:13:50]} {[%emt
00:00:23]} 12. Bg5 {[%clk 00:14:32]} {[%emt 00:00:07]} O-O {[%clk 00:13:55]}
{[%emt 00:00:05]} 13. c4 {[%clk 00:14:27]} {[%emt 00:00:16]} h6 {[%clk
00:13:47]} {[%emt 00:00:18]} 14. Bh4 {[%clk 00:14:32]} {[%emt 00:00:05]} Ng4
{[%clk 00:13:42]} {[%emt 00:00:13]} 15. Bxe7 {[%clk 00:14:37]} {[%emt
00:00:06]} Qxe7 {[%clk 00:13:48]} {[%emt 00:00:03]} 16. h3 {[%clk 00:14:28]}
{[%emt 00:00:19]} Nf6 {[%clk 00:13:39]} {[%emt 00:00:20]} 17. Nc3 {[%clk
00:14:34]} {[%emt 00:00:05]} a5 {[%clk 00:12:35]} {[%emt 00:01:13]} 18. Nb5
{[%clk 00:14:33]} {[%emt 00:00:11]} a4 {[%clk 00:12:30]} {[%emt 00:00:16]} 19.
Qd3 {[%clk 00:14:22]} {[%emt 00:00:21]} Rac8 {[%clk 00:11:26]} {[%emt
00:01:13]} 20. Na7 {[%clk 00:14:23]} {[%emt 00:00:09]} Ra8 {[%clk 00:11:28]}
{[%emt 00:00:07]} 21. Nc6 {[%clk 00:14:31]} {[%emt 00:00:04]} Qd7 {[%clk
00:11:30]} {[%emt 00:00:06]} 22. b3 {[%clk 00:14:30]} {[%emt 00:00:13]} a3
{[%clk 00:11:28]} {[%emt 00:00:11]} 23. Rac1 {[%clk 00:14:18]} {[%emt
00:00:23]} Nh5 {[%clk 00:11:32]} {[%emt 00:00:05]} 24. Nh4 {[%clk 00:13:59]}
{[%emt 00:00:29]} Nf4 {[%clk 00:11:28]} {[%emt 00:00:13]} 25. Qg3 {[%clk
00:14:04]} {[%emt 00:00:07]} Nh5 {[%clk 00:11:32]} {[%emt 00:00:04]} 26. Qf3
{[%clk 00:13:54]} {[%emt 00:00:21]} Nf4 {[%clk 00:10:54]} {[%emt 00:00:48]} 27.
Nf5 {[%clk 00:13:56]} {[%emt 00:00:09]} g6 {[%clk 00:10:54]} {[%emt 00:00:10]}
28. Nxh6+ {[%clk 00:14:01]} {[%emt 00:00:04]} Kg7 {[%clk 00:10:57]} {[%emt
00:00:06]} 29. Ng4 {[%clk 00:13:52]} {[%emt 00:00:20]} f5 {[%clk 00:10:43]}
{[%emt 00:00:24]} 30. exf5 {[%clk 00:13:54]} {[%emt 00:00:08]} Rxf5 {[%clk
00:10:46]} {[%emt 00:00:06]} 31. Ne3 {[%clk 00:13:24]} {[%emt 00:00:41]} Rf7
{[%clk 00:10:32]} {[%emt 00:00:24]} 32. Rcd1 {[%clk 00:13:14]} {[%emt
00:00:22]} Nd3 {[%clk 00:10:25]} {[%emt 00:00:16]} 33. Nf5+ {[%clk 00:12:44]}
{[%emt 00:00:41]} Qxf5 {[%clk 00:09:47]} {[%emt 00:00:47]} 34. Qxf5 {[%clk
00:12:51]} {[%emt 00:00:05]} Rxf5 {[%clk 00:09:53]} {[%emt 00:00:03]} 35. Rxd3
{[%clk 00:12:58]} {[%emt 00:00:02]} Raf8 {[%clk 00:09:48]} {[%emt 00:00:13]} 36.
Re2 {[%clk 00:13:04]} {[%emt 00:00:07]} e4 {[%clk 00:09:35]} {[%emt 00:00:21]}
37. Rde3 {[%clk 00:13:05]} {[%emt 00:00:12]} Re8 {[%clk 00:08:39]} {[%emt
00:01:05]} 38. Rxe4 {[%clk 00:13:10]} {[%emt 00:00:07]} Rxe4 {[%clk 00:08:46]}
{[%emt 00:00:02]} 39. Rxe4 {[%clk 00:13:19]} Rf7 {[%clk 00:08:24]} {[%emt
00:00:29]} 40. Re7 {[%clk 00:13:27]} {[%emt 00:00:06]} Rxe7 {[%clk 00:08:32]}
{[%emt 00:00:02]} 41. Nxe7 {[%clk 00:13:36]} {[%emt 00:00:02]} Kf7 {[%clk
00:08:36]} {[%emt 00:00:05]} 42. Nc6 {[%clk 00:13:45]} {[%emt 00:00:03]} Kf6
{[%clk 00:08:41]} {[%emt 00:00:04]} 43. g4 {[%clk 00:13:53]} {[%emt 00:00:02]}
Ke5 {[%clk 00:08:50]} {[%emt 00:00:02]} 44. Kg2+ {[%clk 00:14:01]} {[%emt
00:00:01]} Kf4 {[%clk 00:08:58]} {[%emt 00:00:02]} 45. h4 {[%clk 00:14:08]}
{[%emt 00:00:04]} Kxg4 {[%clk 00:09:05]} {[%emt 00:00:02]} 46. Nb4 {[%clk
00:14:08]} {[%emt 00:00:10]} Kxh4 {[%clk 00:09:08]} {[%emt 00:00:07]} 47. Na6
{[%clk 00:14:17]} {[%emt 00:00:01]} Kg4 {[%clk 00:09:10]} {[%emt 00:00:08]} 48.
Nxc7 {[%clk 00:14:25]} {[%emt 00:00:02]} Kf4 {[%clk 00:09:17]} {[%emt
00:00:03]} 49. Nb5 {[%clk 00:14:32]} {[%emt 00:00:03]} Ke5 {[%clk 00:09:23]}
{[%emt 00:00:04]} 50. Nxa3 {[%clk 00:14:41]} {[%emt 00:00:02]} Kd4 {[%clk
00:09:32]} 51. Nb5+ {[%clk 00:14:45]} {[%emt 00:00:06]} Kc5 {[%clk 00:09:40]}
{[%emt 00:00:02]} 52. f4 {[%clk 00:14:50]} {[%emt 00:00:04]} Kb4 {[%clk
00:09:46]} {[%emt 00:00:04]} 53. Kg3 {[%emt 00:00:08]} Ka5 {[%clk 00:09:42]}
{[%emt 00:00:07]} 54. Kg4 {[%clk 00:15:07]} {[%emt 00:00:01]} Ka6 {[%clk
00:09:51]} {[%emt 00:00:02]} 55. Kg5 {[%clk 00:15:15]} Kb7 {[%clk 00:10:00]}
{[%emt 00:00:02]} 56. Kxg6 {[%clk 00:15:23]} {[%emt 00:00:02]} Kc8 {[%clk
00:10:09]} {[%emt 00:00:01]} 57. f5 {[%clk 00:15:31]} {[%emt 00:00:02]} Kd7
{[%clk 00:10:05]} {[%emt 00:00:13]} 58. f6 {[%clk 00:15:40]} {[%emt 00:00:01]}
Kc8 {[%clk 00:10:10]} {[%emt 00:00:06]} 59. f7 {[%clk 00:15:48]} {[%emt
00:00:02]} Kd7 {[%clk 00:10:17]} {[%emt 00:00:03]} 60. Nxd6 {[%clk 00:15:46]}
{[%emt 00:00:12]} Kxd6 {[%emt 00:00:17]} 61. f8=Q+ {[%emt 00:00:03]} Kd7 {[%clk
00:10:05]} {[%emt 00:00:02]} 62. Qf7+ {[%clk 00:15:52]} {[%emt 00:00:04]} Kd6
{[%clk 00:09:56]} {[%emt 00:00:19]} 63. Qf6+ {[%clk 00:15:11]} {[%emt
00:00:52]} Kc5 {[%clk 00:10:03]} {[%emt 00:00:02]} 64. Qe7+ {[%clk 00:15:14]}
{[%emt 00:00:07]} Kd4 {[%clk 00:10:10]} {[%emt 00:00:02]} 65. Qa7 {[%clk
00:15:20]} {[%emt 00:00:04]} Kc3 {[%clk 00:10:16]} {[%emt 00:00:05]} 66. Qxb6
{[%clk 00:15:27]} {[%emt 00:00:02]} Kd3 {[%clk 00:10:24]} {[%emt 00:00:02]} 67.
Qc5 {[%clk 00:15:36]} {[%emt 00:00:02]} Ke4 {[%clk 00:10:31]} {[%emt 00:00:02]}
68. Kg5 {[%clk 00:15:42]} {[%emt 00:00:04]} Ke5 {[%clk 00:10:37]} {[%emt
00:00:04]} 69. d6+ {[%clk 00:15:51]} {[%emt 00:00:01]} Ke6 {[%clk 00:10:44]}
{[%emt 00:00:03]} 70. Qd5+ {[%clk 00:15:52]} {[%emt 00:00:09]} Kd7 {[%clk
00:10:51]} {[%emt 00:00:02]} 71. Kf6 {[%clk 00:15:58]} {[%emt 00:00:04]} Kd8
{[%clk 00:10:50]} {[%emt 00:00:10]} 72. Qf7 {[%clk 00:16:05]} {[%emt 00:00:03]}
Kc8 {[%clk 00:10:47]} {[%emt 00:00:13]} 73. Qc7# {[%clk 00:16:14]} {[%emt
00:00:01]} 1-0

[Event "Chessity Nationale Pupillendag 2019 - Groep F"]
[Site "Meppel, Netherlands"]
[Date "2019.06.29"]
[Round "3.6"]
[White "Gelten, Evan"]
[Black "Sterk, Ralf"]
[Result "0-1"]
[TimeControl "15 min + 10 sec"]
[WhiteElo "710"]
[BlackElo "962"]

1. e4 {[%clk 00:15:18]} e5 {[%clk 00:15:19]} 2. Nf3 {[%clk 00:15:24]} {[%emt
00:00:05]} Nc6 {[%clk 00:15:27]} {[%emt 00:00:02]} 3. Bc4 {[%clk 00:15:26]}
{[%emt 00:00:08]} Bc5 {[%clk 00:15:34]} {[%emt 00:00:03]} 4. O-O {[%clk
00:15:32]} {[%emt 00:00:05]} d6 {[%clk 00:15:43]} 5. Nc3 {[%clk 00:15:37]}
{[%emt 00:00:05]} Bg4 {[%clk 00:15:51]} {[%emt 00:00:02]} 6. d3 {[%clk
00:15:44]} {[%emt 00:00:04]} h6 {[%clk 00:15:59]} {[%emt 00:00:02]} 7. h3
{[%clk 00:15:51]} {[%emt 00:00:04]} Bh5 {[%clk 00:16:07]} 8. Be3 {[%clk
00:15:54]} {[%emt 00:00:07]} Nf6 {[%clk 00:16:12]} {[%emt 00:00:06]} 9. a3
{[%clk 00:15:43]} {[%emt 00:00:19]} O-O {[%clk 00:16:15]} {[%emt 00:00:08]} 10.
Re1 {[%clk 00:15:13]} Nd4 {[%clk 00:16:21]} {[%emt 00:00:44]} 11. Bxd4 {[%clk
00:15:18]} Bxd4 {[%clk 00:16:30]} {[%emt 00:00:07]} 12. Bd5 {[%clk 00:14:51]}
c6 {[%clk 00:16:34]} {[%emt 00:00:41]} 13. Bb3 {[%clk 00:14:52]} Qd7 {[%clk
00:16:37]} {[%emt 00:00:17]} 14. g4 {[%clk 00:14:21]} Bg6 {[%clk 00:16:45]}
{[%emt 00:00:43]} 15. Qd2 {[%clk 00:14:28]} h5 {[%clk 00:16:51]} {[%emt
00:00:07]} 16. Kf1 {[%clk 00:14:17]} hxg4 {[%clk 00:16:58]} {[%emt 00:00:24]}
17. hxg4 {[%clk 00:14:25]} {[%emt 00:00:02]} Qxg4 {[%clk 00:17:02]} {[%emt
00:00:06]} 18. Ke2 {[%clk 00:14:32]} {[%emt 00:00:02]} Bh5 {[%clk 00:17:02]}
{[%emt 00:00:11]} 19. Kd1 {[%clk 00:13:29]} {[%emt 00:01:14]} Qxf3+ {[%clk
00:17:09]} {[%emt 00:00:02]} 20. Kc1 {[%clk 00:13:36]} {[%emt 00:00:03]} Bxf2
{[%clk 00:17:04]} {[%emt 00:00:15]} 21. Re2 {[%clk 00:13:28]} {[%emt 00:00:18]}
Bg3 {[%clk 00:17:02]} {[%emt 00:00:09]} 22. Qe3 {[%clk 00:13:14]} {[%emt
00:00:23]} Bf4 {[%clk 00:17:10]} {[%emt 00:00:05]} 23. Kd2 {[%clk 00:12:51]}
{[%emt 00:00:34]} Bxe3+ {[%clk 00:17:11]} {[%emt 00:00:09]} 24. Rxe3 {[%clk
00:12:58]} {[%emt 00:00:02]} Qf4 {[%clk 00:17:10]} {[%emt 00:00:11]} 25. Rh1
{[%clk 00:13:02]} {[%emt 00:00:05]} Ng4 {[%clk 00:17:11]} {[%emt 00:00:10]} 26.
Rxh5 {[%clk 00:13:06]} {[%emt 00:00:06]} Qxe3+ {[%clk 00:17:19]} {[%emt
00:00:03]} 27. Kd1 {[%clk 00:13:11]} {[%emt 00:00:02]} Nf2# {[%clk 00:17:27]}
{[%emt 00:00:04]} 0-1

[Event "Chessity Nationale Pupillendag 2019 - Groep F"]
[Site "Meppel, Netherlands"]
[Date "2019.06.29"]
[Round "4.1"]
[White "Pereira Garza, Cecilia"]
[Black "Grooten, Tommy"]
[Result "0-1"]
[TimeControl "15 min + 10 sec"]
[WhiteElo "929"]
[BlackElo "1318"]

1. d4 {[%clk 00:15:17]} {[%emt 00:00:01]} Nf6 {[%clk 00:15:20]} 2. c4 {[%clk
00:15:24]} {[%emt 00:00:04]} g6 {[%clk 00:15:26]} {[%emt 00:00:04]} 3. Nc3
{[%clk 00:15:30]} {[%emt 00:00:03]} Bg7 {[%clk 00:15:34]} {[%emt 00:00:02]} 4.
e4 {[%clk 00:15:37]} {[%emt 00:00:04]} d6 {[%clk 00:15:43]} 5. f4 {[%clk
00:15:39]} {[%emt 00:00:07]} O-O {[%clk 00:15:45]} {[%emt 00:00:09]} 6. Nf3
{[%clk 00:15:44]} {[%emt 00:00:05]} Re8 {[%clk 00:15:40]} {[%emt 00:00:15]} 7.
Be3 {[%clk 00:15:33]} {[%emt 00:00:21]} Bg4 {[%clk 00:15:39]} {[%emt 00:00:11]}
8. Be2 {[%clk 00:15:36]} {[%emt 00:00:07]} Qc8 {[%clk 00:15:19]} {[%emt
00:00:30]} 9. O-O {[%clk 00:15:15]} {[%emt 00:00:30]} Nc6 {[%clk 00:15:10]}
{[%emt 00:00:21]} 10. d5 {[%clk 00:14:26]} {[%emt 00:00:59]} Nb8 {[%clk
00:15:18]} {[%emt 00:00:02]} 11. Qb3 {[%clk 00:14:28]} {[%emt 00:00:07]} Na6
{[%clk 00:15:21]} {[%emt 00:00:08]} 12. Rac1 {[%clk 00:14:01]} {[%emt
00:00:36]} Nc5 {[%clk 00:14:48]} {[%emt 00:00:44]} 13. Bxc5 {[%clk 00:13:58]}
{[%emt 00:00:13]} dxc5 {[%clk 00:14:57]} {[%emt 00:00:01]} 14. Nd2 {[%clk
00:13:36]} {[%emt 00:00:29]} Bxe2 {[%emt 00:00:10]} 15. Nxe2 {[%clk 00:13:41]}
{[%emt 00:00:03]} Qg4 {[%clk 00:15:03]} {[%emt 00:00:07]} 16. Qf3 {[%clk
00:12:59]} {[%emt 00:00:52]} Qxf3 {[%clk 00:15:08]} {[%emt 00:00:05]} 17. Rxf3
{[%clk 00:13:06]} {[%emt 00:00:03]} h5 {[%clk 00:15:10]} {[%emt 00:00:09]} 18.
Nb3 {[%clk 00:12:16]} {[%emt 00:01:00]} b6 {[%clk 00:15:18]} {[%emt 00:00:02]}
19. e5 {[%clk 00:12:11]} {[%emt 00:00:14]} Ng4 {[%clk 00:15:00]} {[%emt
00:00:28]} 20. Rd1 {[%clk 00:11:59]} {[%emt 00:00:22]} Rad8 {[%clk 00:14:57]}
{[%emt 00:00:14]} 21. Rfd3 {[%clk 00:10:50]} {[%emt 00:01:17]} Rd7 {[%clk
00:14:22]} {[%emt 00:00:48]} 22. Nd2 {[%clk 00:10:26]} {[%emt 00:00:33]} c6
{[%clk 00:13:08]} {[%emt 00:01:24]} 23. Nf3 {[%clk 00:10:19]} {[%emt 00:00:14]}
Red8 {[%clk 00:13:11]} {[%emt 00:00:09]} 24. d6 {[%clk 00:09:03]} {[%emt
00:01:26]} exd6 {[%clk 00:13:14]} {[%emt 00:00:08]} 25. Rxd6 {[%clk 00:09:01]}
{[%emt 00:00:12]} Rxd6 {[%clk 00:13:21]} {[%emt 00:00:03]} 26. Rxd6 {[%clk
00:09:06]} {[%emt 00:00:05]} Rxd6 {[%clk 00:13:28]} {[%emt 00:00:03]} 27. exd6
{[%clk 00:09:13]} {[%emt 00:00:03]} Kf8 {[%clk 00:13:07]} {[%emt 00:00:31]} 28.
h3 {[%clk 00:08:56]} {[%emt 00:00:26]} Ne3 {[%clk 00:13:15]} {[%emt 00:00:02]}
29. Ne5 {[%clk 00:07:58]} {[%emt 00:01:08]} Bxe5 {[%clk 00:13:12]} {[%emt
00:00:15]} 30. fxe5 {[%clk 00:07:59]} {[%emt 00:00:08]} Nxc4 {[%clk 00:13:20]}
{[%emt 00:00:02]} 31. d7 {[%clk 00:07:34]} {[%emt 00:00:35]} Ke7 {[%clk
00:13:29]} {[%emt 00:00:02]} 32. Nf4 {[%clk 00:07:10]} {[%emt 00:00:34]} Nxe5
{[%clk 00:13:32]} {[%emt 00:00:08]} 0-1

[Event "Chessity Nationale Pupillendag 2019 - Groep F"]
[Site "Meppel, Netherlands"]
[Date "2019.06.29"]
[Round "4.2"]
[White "Kurt, Sascha"]
[Black "Vijver, Jonathan"]
[Result "1-0"]
[TimeControl "15 min + 10 sec"]
[WhiteElo "789"]
[BlackElo "948"]

1. e4 {[%clk 00:15:19]} c5 {[%clk 00:15:18]} 2. Nf3 {[%clk 00:15:19]} d6 {[%clk
00:15:25]} {[%emt 00:23:26]} 3. d4 {[%clk 00:15:29]} {[%emt 00:00:05]} cxd4
{[%clk 00:15:32]} {[%emt 00:00:04]} 4. Nxd4 {[%clk 00:15:33]} {[%emt 00:00:06]}
Nf6 {[%emt 00:00:04]} 5. Nc3 {[%clk 00:15:35]} {[%emt 00:00:06]} a6 {[%clk
00:15:49]} {[%emt 00:00:02]} 6. f4 {[%clk 00:15:30]} {[%emt 00:00:14]} e5
{[%clk 00:15:52]} {[%emt 00:00:07]} 7. Nf3 {[%clk 00:15:38]} {[%emt 00:00:03]}
Nc6 {[%clk 00:15:58]} {[%emt 00:00:04]} 8. Bd3 {[%clk 00:15:37]} {[%emt
00:00:11]} Bg4 {[%clk 00:16:04]} {[%emt 00:00:04]} 9. O-O {[%clk 00:15:36]} Nd4
{[%clk 00:16:11]} {[%emt 00:00:14]} 10. Be2 {[%clk 00:15:35]} Qb6 {[%clk
00:16:05]} {[%emt 00:00:26]} 11. Kh1 {[%clk 00:15:43]} Nxe2 {[%clk 00:16:10]}
{[%emt 00:00:09]} 12. Qxe2 {[%clk 00:15:50]} Be7 {[%clk 00:15:57]} {[%emt
00:00:25]} 13. h3 {[%clk 00:15:48]} Bh5 {[%clk 00:16:01]} {[%emt 00:00:18]} 14.
g4 {[%clk 00:15:53]} {[%emt 00:00:05]} Nxg4 {[%clk 00:16:04]} {[%emt 00:00:08]}
15. hxg4 {[%clk 00:16:01]} {[%emt 00:00:01]} Bxg4 {[%clk 00:16:13]} 16. Rg1 Bh5
{[%emt 00:00:01]} 17. Rf1 {[%clk 00:16:01]} Bg4 {[%clk 00:16:13]} 18. Rg1
{[%clk 00:16:01]} Bxf3+ {[%clk 00:16:07]} {[%emt 00:00:21]} 19. Qxf3 {[%clk
00:16:15]} Bf6 {[%clk 00:16:14]} {[%emt 00:00:04]} 20. fxe5 {[%clk 00:16:20]}
{[%emt 00:00:05]} Bxe5 {[%clk 00:16:19]} {[%emt 00:00:04]} 21. Nd5 {[%clk
00:16:22]} {[%emt 00:00:09]} Qd8 {[%clk 00:16:28]} {[%emt 00:00:01]} 22. Qh3
{[%clk 00:15:45]} {[%emt 00:00:46]} Bd4 {[%clk 00:16:32]} {[%emt 00:00:06]} 23.
Rf1 {[%clk 00:15:50]} {[%emt 00:00:04]} Rc8 {[%clk 00:15:22]} {[%emt 00:01:21]}
24. c3 {[%clk 00:15:42]} {[%emt 00:00:19]} Be5 {[%clk 00:15:26]} {[%emt
00:00:05]} 25. Qh5 {[%clk 00:15:32]} {[%emt 00:00:20]} g6 {[%clk 00:15:25]}
{[%emt 00:00:11]} 26. Qh3 {[%clk 00:15:25]} {[%emt 00:00:17]} h5 {[%clk
00:14:31]} {[%emt 00:01:04]} 27. Bf4 {[%clk 00:15:22]} {[%emt 00:00:13]} Bxf4
{[%clk 00:14:34]} {[%emt 00:00:07]} 28. Nxf4 {[%clk 00:15:29]} {[%emt
00:00:03]} Qg5 {[%clk 00:14:40]} {[%emt 00:00:03]} 29. Qg2 {[%clk 00:15:28]}
{[%emt 00:00:12]} Qh4+ {[%clk 00:14:44]} {[%emt 00:00:06]} 30. Qh2 {[%clk
00:15:35]} {[%emt 00:00:03]} Qe7 {[%clk 00:14:35]} {[%emt 00:00:18]} 31. Rae1
{[%clk 00:15:37]} {[%emt 00:00:09]} Rc4 {[%clk 00:13:47]} {[%emt 00:00:58]} 32.
Nd5 {[%clk 00:15:38]} {[%emt 00:00:08]} Qe6 {[%clk 00:13:40]} {[%emt 00:00:13]}
33. b3 {[%clk 00:15:43]} {[%emt 00:00:11]} Rxe4 {[%clk 00:13:46]} {[%emt
00:00:03]} 34. Nc7+ {[%clk 00:15:52]} {[%emt 00:00:01]} Kd7 {[%clk 00:13:54]}
{[%emt 00:00:02]} 35. Nxe6 {[%clk 00:16:00]} {[%emt 00:00:01]} Kxe6 {[%clk
00:14:03]} {[%emt 00:00:01]} 36. Rxe4+ {[%clk 00:16:06]} {[%emt 00:00:04]} Kd5
{[%clk 00:14:11]} {[%emt 00:00:02]} 37. Rd4+ {[%clk 00:16:08]} {[%emt
00:00:08]} Kc6 {[%clk 00:14:20]} {[%emt 00:00:02]} 38. Qxd6+ {[%clk 00:16:15]}
{[%emt 00:00:02]} Kb5 {[%clk 00:14:29]} 39. c4+ {[%clk 00:16:23]} {[%emt
00:00:02]} Ka5 {[%clk 00:14:38]} 40. Qc5+ {[%clk 00:16:32]} {[%emt 00:00:02]}
b5 {[%emt 00:00:03]} 41. cxb5 {[%clk 00:16:38]} {[%emt 00:00:03]} axb5 {[%clk
00:14:53]} {[%emt 00:00:02]} 42. b4+ {[%clk 00:16:46]} {[%emt 00:00:02]} Ka4
{[%clk 00:15:02]} {[%emt 00:00:01]} 43. Qc2+ {[%clk 00:16:52]} {[%emt
00:00:04]} Ka3 {[%clk 00:15:10]} {[%emt 00:00:02]} 44. Qb3# {[%clk 00:17:01]}
1-0

[Event "Chessity Nationale Pupillendag 2019 - Groep F"]
[Site "Meppel, Netherlands"]
[Date "2019.06.29"]
[Round "4.3"]
[White "Bultstra, Tycho"]
[Black "Koorevaar, Sarah-Joy"]
[Result "1-0"]
[TimeControl "15 min + 10 sec"]
[WhiteElo "559"]
[BlackElo "648"]

1. e4 {[%clk 00:15:19]} c5 {[%clk 00:15:19]} {[%emt 00:00:01]} 2. Nf3 {[%clk
00:15:26]} {[%emt 00:00:02]} Nc6 {[%clk 00:15:28]} {[%emt 00:00:02]} 3. Nc3
{[%clk 00:15:32]} {[%emt 00:00:04]} d6 {[%clk 00:15:33]} {[%emt 00:00:04]} 4.
Bc4 {[%clk 00:15:37]} {[%emt 00:00:06]} Bg4 {[%clk 00:15:41]} {[%emt 00:00:02]}
5. O-O {[%clk 00:15:38]} {[%emt 00:00:09]} Nd4 {[%clk 00:15:50]} {[%emt
00:00:02]} 6. d3 {[%clk 00:15:31]} {[%emt 00:00:18]} Nxf3+ {[%clk 00:15:56]}
{[%emt 00:00:03]} 7. gxf3 {[%clk 00:15:39]} {[%emt 00:00:02]} Bh3 {[%clk
00:16:05]} 8. Re1 {[%clk 00:15:36]} {[%emt 00:00:13]} Nf6 {[%clk 00:15:01]}
{[%emt 00:01:14]} 9. Bg5 {[%clk 00:15:28]} {[%emt 00:00:17]} g6 {[%clk
00:15:06]} {[%emt 00:00:05]} 10. Bxf6 {[%clk 00:15:36]} {[%emt 00:00:02]} exf6
{[%clk 00:14:55]} {[%emt 00:00:21]} 11. Qd2 {[%clk 00:15:31]} {[%emt 00:00:15]}
Bg7 {[%clk 00:14:58]} {[%emt 00:00:07]} 12. Qe3 {[%clk 00:15:31]} {[%emt
00:00:10]} O-O {[%clk 00:15:03]} {[%emt 00:00:05]} 13. f4 {[%clk 00:15:38]}
{[%emt 00:00:03]} Bh6 {[%clk 00:15:08]} {[%emt 00:00:05]} 14. Qxh3 {[%clk
00:15:40]} {[%emt 00:00:08]} Bxf4 {[%clk 00:15:13]} {[%emt 00:00:05]} 15. Qh4
{[%clk 00:15:35]} {[%emt 00:00:15]} Bg5 {[%clk 00:15:15]} {[%emt 00:00:08]} 16.
Qg3 {[%clk 00:15:28]} {[%emt 00:00:17]} Re8 {[%clk 00:14:52]} {[%emt 00:00:32]}
17. Qf3 {[%clk 00:15:33]} {[%emt 00:00:06]} Qe7 {[%clk 00:14:26]} {[%emt
00:00:36]} 18. Nd5 {[%clk 00:15:33]} {[%emt 00:00:10]} Qe5 {[%clk 00:14:05]}
{[%emt 00:00:26]} 19. Nc7 {[%clk 00:15:33]} {[%emt 00:00:15]} Bd2 {[%clk
00:13:56]} {[%emt 00:00:18]} 20. Re2 {[%clk 00:15:34]} {[%emt 00:00:10]} Qxb2
{[%clk 00:13:53]} {[%emt 00:00:13]} 21. Rf1 {[%clk 00:15:25]} {[%emt 00:00:19]}
Qxc2 {[%clk 00:13:45]} {[%emt 00:00:17]} 22. Nxe8 {[%clk 00:15:32]} {[%emt
00:00:04]} Rxe8 {[%clk 00:13:54]} {[%emt 00:00:01]} 23. Qxf6 {[%clk 00:15:24]}
{[%emt 00:00:17]} Rf8 {[%clk 00:13:46]} {[%emt 00:00:19]} 24. Qxd6 {[%clk
00:15:06]} {[%emt 00:00:28]} Qc3 {[%clk 00:13:06]} {[%emt 00:00:49]} 25. Qxc5
{[%clk 00:14:50]} {[%emt 00:00:27]} Re8 {[%clk 00:12:32]} {[%emt 00:00:44]} 26.
Qd5 {[%clk 00:14:16]} {[%emt 00:00:44]} Re5 {[%clk 00:12:16]} {[%emt 00:00:26]}
27. Qxf7+ {[%clk 00:14:17]} {[%emt 00:00:09]} Kh8 {[%clk 00:12:14]} {[%emt
00:00:11]} 28. Qf8# 1-0

[Event "Chessity Nationale Pupillendag 2019 - Groep F"]
[Site "Meppel, Netherlands"]
[Date "2019.06.29"]
[Round "4.4"]
[White "Sterk, Ralf"]
[Black "Vogels, Mathijs"]
[Result "1-0"]
[TimeControl "15 min + 10 sec"]
[WhiteElo "962"]
[BlackElo "572"]

1. e4 {[%emt 00:00:57]} e6 {[%emt 00:00:02]} 2. Nf3 {[%emt 00:00:04]} g5 {[%emt
00:00:02]} 3. Nc3 {[%emt 00:00:06]} g4 {[%emt 00:00:02]} 4. Ng1 {[%emt
00:00:02]} Bc5 {[%emt 00:00:03]} 5. d4 {[%emt 00:00:06]} Bb6 {[%emt 00:00:04]}
6. Bf4 {[%emt 00:00:06]} Ba5 {[%emt 00:00:05]} 7. a3 {[%emt 00:00:04]} d6
{[%emt 00:00:07]} 8. f3 {[%emt 00:00:13]} gxf3 {[%emt 00:00:01]} 9. Nxf3 {[%emt
00:00:03]} Qf6 {[%emt 00:00:07]} 10. Bg5 {[%emt 00:00:16]} Qg7 {[%emt
00:00:08]} 11. Bf4 {[%emt 00:00:30]} Qf6 {[%emt 00:00:14]} 12. g3 {[%emt
00:00:08]} e5 {[%emt 00:00:02]} 13. dxe5 {[%emt 00:00:06]} dxe5 {[%emt
00:00:01]} 14. Bxe5 {[%emt 00:00:03]} Qb6 {[%emt 00:00:10]} 15. Bxh8 {[%emt
00:00:07]} Qc5 {[%emt 00:00:11]} 16. Qd3 {[%emt 00:00:19]} Bb6 {[%emt
00:00:09]} 17. Bd4 {[%emt 00:00:06]} Qc6 {[%emt 00:00:39]} 18. Bg2 {[%emt
00:00:04]} Bxd4 {[%emt 00:00:08]} 19. Qxd4 {[%emt 00:00:06]} Qe6 {[%emt
00:00:15]} 20. O-O-O {[%emt 00:00:18]} b6 {[%clk 00:15:37]} {[%emt 00:00:07]}
21. Qd8# {[%clk 00:16:22]} 1-0